fUST/lending_fUST_20250718
["ID","MTS","AMOUNT","RATE_DAILY","PERIOD"]
[373037802,1752844243340,-576.14029892,0.00018425,2]
[373037804,1752844243350,-576.14029892,0.00018425,2]
[373037806,1752844243361,-576.14029892,0.00018425,2]
[373037807,1752844243371,-576.14029892,0.00018425,2]
[373037809,1752844243381,-576.14029892,0.00018425,2]
[373037811,1752844243391,-576.14029892,0.00018425,2]
[373037813,1752844243401,-576.14029892,0.00018425,2]
[373037814,1752844243411,-576.14029892,0.00018425,2]
[373037816,1752844243422,-576.14029892,0.00018425,2]
[373037818,1752844243432,-576.14029892,0.00018425,2]
[373037820,1752844243442,-576.14029892,0.00018425,2]
[373037822,1752844243452,-576.14029892,0.00018425,2]
[373037824,1752844243464,-576.14029892,0.00018425,2]
[373037825,1752844243474,-576.14029892,0.00018425,2]
[373037827,1752844243484,-576.14029892,0.00018425,2]
[373037829,1752844243494,-576.14029892,0.00018425,2]
[373037831,1752844243505,-1500.0,0.00018426,2]
[373037833,1752844243515,-1680.0,0.00018436,2]
[373037835,1752844243525,-2786.74,0.00018438,2]
[373037836,1752844243535,-226.49,0.00018438,2]
[373037838,1752844243545,-2337.76,0.00018438,2]
[373037840,1752844243555,-460.0,0.00018438,2]
[373037842,1752844243565,-1296.9,0.00018438,2]
[373037844,1752844243575,-1460.15,0.00018438,2]
[373037845,1752844243584,-1098.7,0.00018438,2]
[373037847,1752844243594,-460.0,0.00018438,2]
[373037849,1752844243603,-1024.09,0.00018438,2]
[373037851,1752844243612,-460.0,0.00018438,2]
[373037853,1752844243621,-460.0,0.00018438,2]
[373037854,1752844243631,-420.42839525,0.00018439,2]
[373037856,1752844243640,-460.0,0.00018439,2]
[373037858,1752844243650,-514.77,0.00018439,2]
[373037861,1752844243660,-326.29001919,0.00018439,2]
[373037864,1752844243669,-460.0,0.00018439,2]
[373037866,1752844243679,-460.0,0.00018439,2]
[373037867,1752844243688,-1278.94,0.00018439,2]
[373037869,1752844243698,-460.0,0.00018439,2]
[373037871,1752844243708,-460.0,0.00018439,2]
[373037873,1752844243720,-484.09,0.00018439,2]
[373037875,1752844243729,-460.0,0.00018439,2]
[373037876,1752844243739,-460.0,0.00018439,2]
[373037878,1752844243748,-460.0,0.00018439,2]
[373037880,1752844243758,-460.0,0.00018439,2]
[373037881,1752844243768,-599.0,0.00018439,2]
[373037883,1752844243777,-460.0,0.00018439,2]
[373037885,1752844243787,-460.0,0.00018439,2]
[373037887,1752844243796,-460.0,0.0001844,2]
[373037888,1752844243805,-576.61,0.0001844,2]
[373037890,1752844243815,-460.0,0.0001844,2]
[373037892,1752844243824,-460.0,0.00018441,2]
[373037894,1752844243833,-460.0,0.00018441,2]
[373037896,1752844243843,-680.76,0.00018441,2]
[373037898,1752844243852,-2157.69023447,0.00018452,2]
[373037900,1752844243862,-460.0,0.0001854,2]
[373037901,1752844243871,-460.0,0.0001854,2]
[373037903,1752844243881,-604.7345721,0.0001854,2]
[373037905,1752844243891,-460.0,0.0001854,2]
[373037907,1752844243901,-1442.87,0.00018541,2]
[373037909,1752844243910,-3028.43,0.00018541,2]
[373037911,1752844243920,-872.67,0.00018541,2]
[373037912,1752844243929,-160.0,0.00018604,2]
[373037914,1752844243939,-196.0,0.00018685,3]
[373037916,1752844243948,-2786.74,0.00018712,2]
[373037918,1752844243959,-2337.76,0.00018712,2]
[373037920,1752844243972,-460.0,0.00018712,2]
[373037922,1752844243982,-1296.9,0.00018712,2]
[373037924,1752844243991,-1460.15,0.00018712,2]
[373037926,1752844244000,-1098.7,0.00018712,2]
[373037927,1752844244009,-460.0,0.00018712,2]
[373037929,1752844244018,-1024.09,0.00018712,2]
[373037931,1752844244028,-460.0,0.00018712,2]
[373037933,1752844244038,-460.0,0.00018712,2]
[373037944,1752844244147,-460.0,0.00018713,2]
[373037946,1752844244157,-460.0,0.00018713,2]
[373037948,1752844244166,-460.0,0.00018713,2]
[373037950,1752844244175,-1278.94,0.00018713,2]
[373037952,1752844244184,-460.0,0.00018713,2]
[373037954,1752844244194,-460.0,0.00018713,2]
[373037955,1752844244203,-484.09,0.00018713,2]
[373037957,1752844244215,-460.0,0.00018713,2]
[373037958,1752844244224,-460.0,0.00018713,2]
[373037960,1752844244234,-421.18,0.00018713,2]
[373037962,1752844244243,-460.0,0.00018713,2]
[373037964,1752844244253,-599.0,0.00018713,2]
[373037966,1752844244262,-460.0,0.00018713,2]
[373037967,1752844244272,-460.0,0.00018713,2]
[373037969,1752844244283,-460.0,0.00018714,2]
[373037971,1752844244292,-576.61,0.00018714,2]
[373037973,1752844244302,-460.0,0.00018714,2]
[373037975,1752844244314,-460.0,0.00018715,2]
[373037977,1752844244324,-460.0,0.00018715,2]
[373037978,1752844244333,-680.76,0.00018715,2]
[373037980,1752844244343,-11595.97903523,0.00018728,2]
[373037982,1752844244352,-2157.69023447,0.00018762,2]
[373037984,1752844244363,-460.0,0.00018814,2]
[373037986,1752844244372,-460.0,0.00018814,2]
[373037987,1752844244381,-460.0,0.00018814,2]
[373037989,1752844244392,-1442.87,0.00018815,2]
[373037991,1752844244401,-3028.43,0.00018815,2]
[373037993,1752844244411,-872.67,0.00018815,2]
[373037995,1752844244421,-1799.5856212,0.000189,2]
[373037997,1752844244431,-2000.0,0.00018974,2]
[373037999,1752844244440,-2786.74,0.00018986,2]
[373038000,1752844244449,-2337.76,0.00018986,2]
[373038002,1752844244459,-460.0,0.00018986,2]
[373038004,1752844244471,-1296.9,0.00018986,2]
[373038006,1752844244481,-1460.15,0.00018986,2]
[373038008,1752844244491,-1098.7,0.00018986,2]
[373038010,1752844244501,-607.46,0.00018986,2]
[373038012,1752844244511,-1024.09,0.00018986,2]
[373038013,1752844244520,-164.82878748,0.00018986,2]
[373038015,1752844244530,-460.0,0.00018986,2]
[373038017,1752844244539,-460.0,0.00018987,2]
[373038019,1752844244549,-460.0,0.00018987,2]
[373038021,1752844244559,-460.0,0.00018987,2]
[373038023,1752844244568,-1278.94,0.00018987,2]
[373038025,1752844244578,-460.0,0.00018987,2]
[373038027,1752844244587,-460.0,0.00018987,2]
[373038028,1752844244596,-484.09,0.00018987,2]
[373038030,1752844244606,-460.0,0.00018987,2]
[373038032,1752844244615,-460.0,0.00018987,2]
[373038034,1752844244624,-460.0,0.00018987,2]
[373038036,1752844244634,-599.0,0.00018987,2]
[373038038,1752844244644,-460.0,0.00018987,2]
[373038040,1752844244652,-460.0,0.00018987,2]
[373038041,1752844244662,-460.0,0.00018988,2]
[373038043,1752844244671,-576.61,0.00018988,2]
[373038045,1752844244680,-460.0,0.00018988,2]
[373038047,1752844244690,-460.0,0.00018989,2]
[373038049,1752844244699,-460.0,0.00018989,2]
[373038051,1752844244708,-680.76,0.00018989,2]
[373038053,1752844244718,-2157.69023447,0.00019072,2]
[373038055,1752844244728,-460.0,0.00019088,2]
[373038056,1752844244738,-460.0,0.00019088,2]
[373038058,1752844244747,-460.0,0.00019088,2]
[373038060,1752844244757,-1442.87,0.00019089,2]
[373038062,1752844244767,-3028.43,0.00019089,2]
[373038064,1752844244776,-872.67,0.00019089,2]
[373038066,1752844244786,-260.0,0.00019152,2]
[373038068,1752844244795,-1683.315,0.00019178,10]
[373038070,1752844244805,-5000.0,0.00019178,2]
[373038072,1752844244814,-666.0,0.00019178,2]
[373038073,1752844244823,-186.786836,0.00019178,2]
[373038075,1752844244833,-516.79292247,0.00019183,2]
[373038077,1752844244842,-2786.74,0.0001926,2]
[373038079,1752844244851,-2337.76,0.0001926,2]
[373038081,1752844244861,-460.0,0.0001926,2]
[373038083,1752844244871,-1296.9,0.0001926,2]
[373038085,1752844244880,-1460.15,0.0001926,2]
[373038087,1752844244889,-1098.7,0.0001926,2]
[373038089,1752844244898,-1024.09,0.0001926,2]
[373038090,1752844244907,-460.0,0.0001926,2]
[373038092,1752844244916,-460.0,0.00019261,2]
[373038094,1752844244926,-460.0,0.00019261,2]
[373038096,1752844244935,-460.0,0.00019261,2]
[373038098,1752844244945,-1278.94,0.00019261,2]
[373038100,1752844244954,-460.0,0.00019261,2]
[373038102,1752844244965,-460.0,0.00019261,2]
[373038104,1752844244974,-484.09,0.00019261,2]
[373038106,1752844244983,-460.0,0.00019261,2]
[373038108,1752844244992,-460.0,0.00019261,2]
[373038110,1752844245002,-460.0,0.00019261,2]
[373038112,1752844245011,-599.0,0.00019261,2]
[373038113,1752844245020,-460.0,0.00019261,2]
[373038115,1752844245030,-460.0,0.00019261,2]
[373038117,1752844245039,-460.0,0.00019262,2]
[373038119,1752844245048,-576.61,0.00019262,2]
[373038121,1752844245058,-460.0,0.00019262,2]
[373038123,1752844245068,-460.0,0.00019263,2]
[373038125,1752844245077,-680.76,0.00019263,2]
[373038127,1752844245086,-500.0,0.00019271,2]
[373038129,1752844245096,-500.0,0.00019271,2]
[373038131,1752844245105,-500.0,0.00019271,2]
[373038133,1752844245114,-2626.65196432,0.00019348,2]
[373038134,1752844245124,-460.0,0.00019362,2]
[373038136,1752844245134,-460.0,0.00019362,2]
[373038138,1752844245146,-460.0,0.00019362,2]
[373038140,1752844245155,-1442.87,0.00019363,2]
[373038142,1752844245164,-3028.43,0.00019363,2]
[373038144,1752844245173,-872.67,0.00019363,2]
[373038146,1752844245183,-2157.69023447,0.00019383,2]
[373038148,1752844245192,-151.0,0.000194,2]
[373038150,1752844245202,-2079.86272188,0.00019522,2]
[373038152,1752844245214,-2786.74,0.00019534,2]
[373038154,1752844245223,-2337.76,0.00019534,2]
[373038156,1752844245232,-460.0,0.00019534,2]
[373038157,1752844245241,-1296.9,0.00019534,2]
[373038159,1752844245250,-1460.15,0.00019534,2]
[373038161,1752844245260,-1098.7,0.00019534,2]
[373038163,1752844245269,-1024.09,0.00019534,2]
[373038165,1752844245279,-460.0,0.00019534,2]
[373038167,1752844245288,-421.87751188,0.00019535,2]
[373038169,1752844245297,-460.0,0.00019535,2]
[373038171,1752844245307,-460.0,0.00019535,2]
[373038173,1752844245320,-1278.94,0.00019535,2]
[373038175,1752844245330,-460.0,0.00019535,2]
[373038177,1752844245340,-341.56212522,0.00019535,2]
[373038179,1752844245349,-484.09,0.00019535,2]
[373038180,1752844245359,-227.3337927,0.00019535,2]
[373038182,1752844245368,-460.0,0.00019535,2]
[373038184,1752844245378,-460.0,0.00019535,2]
[373038186,1752844245387,-599.0,0.00019535,2]
[373038188,1752844245397,-460.0,0.00019535,2]
[373038190,1752844245406,-460.0,0.00019535,2]
[373038192,1752844245416,-460.0,0.00019536,2]
[373038194,1752844245425,-576.61,0.00019536,2]
[373038195,1752844245435,-577.07767593,0.00019536,2]
[373038196,1752844245444,-460.0,0.00019537,2]
[373038197,1752844245453,-680.76,0.00019537,2]
[373038198,1752844245464,-500.0,0.00019567,2]
[373038199,1752844245474,-500.44364371,0.00019567,2]
[373038200,1752844245483,-228.47503977,0.00019636,2]
[373038201,1752844245492,-460.0,0.00019636,2]
[373038202,1752844245502,-460.0,0.00019636,2]
[373038203,1752844245512,-1442.87,0.00019637,2]
[373038204,1752844245522,-3028.43,0.00019637,2]
[373038205,1752844245531,-872.67,0.00019637,2]
[373038206,1752844245542,-2157.69023447,0.00019693,2]
[373038207,1752844245551,-360.0,0.000197,2]
[373038208,1752844245560,-500.84219831,0.00019792,2]
[373038209,1752844245570,-151.0,0.000198,2]
[373038210,1752844245579,-2786.74,0.00019808,2]
[373038211,1752844245589,-2337.76,0.00019808,2]
[373038212,1752844245598,-460.0,0.00019808,2]
[373038213,1752844245607,-1296.9,0.00019808,2]
[373038214,1752844245616,-1460.15,0.00019808,2]
[373038215,1752844245627,-1098.7,0.00019808,2]
[373038216,1752844245636,-1024.09,0.00019808,2]
[373038217,1752844245646,-460.0,0.00019808,2]
[373038218,1752844245655,-460.0,0.00019809,2]
[373038219,1752844245665,-460.0,0.00019809,2]
[373038220,1752844245674,-1278.94,0.00019809,2]
[373038221,1752844245683,-460.0,0.00019809,2]
[373038222,1752844245692,-484.09,0.00019809,2]
[373038223,1752844245702,-460.0,0.00019809,2]
[373038224,1752844245713,-460.0,0.00019809,2]
[373038225,1752844245722,-599.0,0.00019809,2]
[373038226,1752844245733,-210.98,0.00019809,2]
[373038227,1752844245743,-544.27,0.00019809,2]
[373038228,1752844245752,-460.0,0.0001981,2]
[373038229,1752844245761,-576.61,0.0001981,2]
[373038230,1752844245771,-460.0,0.00019811,2]
[373038231,1752844245781,-680.76,0.00019811,2]
[373038232,1752844245790,-1000.0,0.00019819,2]
[373038233,1752844245799,-1000.0,0.00019819,2]
[373038234,1752844245809,-460.0,0.0001991,2]
[373038235,1752844245818,-460.0,0.0001991,2]
[373038236,1752844245827,-151.0,0.00019911,2]
[373038237,1752844245837,-151.0,0.00019911,2]
[373038238,1752844245847,-1442.87,0.00019911,2]
[373038239,1752844245856,-3028.43,0.00019911,2]
[373038240,1752844245865,-872.67,0.00019911,2]
[373038241,1752844245875,-2157.69023447,0.00020003,2]
[373038243,1752844245884,-600.0,0.00020009,2]
[373038244,1752844245894,-319.0,0.00020042,2]
[373038245,1752844245903,-587.0,0.00020042,2]
[373038246,1752844245912,-308.0,0.00020042,2]
[373038247,1752844245921,-287.0,0.00020042,2]
[373038248,1752844245931,-391.78364511,0.00020082,2]
[373038255,1752844246144,-460.0,0.00016795,2]
[373038256,1752844246154,-1156.51,0.00016796,2]
[373038257,1752844246164,-1156.51,0.0001707,2]
[373038259,1752844246174,-1156.51,0.00017344,2]
[373038261,1752844246184,-1156.51,0.00017618,2]
[373038263,1752844246193,-897.64019413,0.00017892,2]
[373038296,1752844246527,-460.0,0.00017069,2]
[373038298,1752844246537,-410.0,0.00017343,2]
[373038323,1752844246762,-50.0,0.00017343,2]
[373038325,1752844246771,-460.0,0.00017617,2]
[373038327,1752844246780,-90.0,0.00017891,2]
[373038352,1752844247011,-460.0,0.00016796,2]
[373038354,1752844247020,-301.05,0.0001707,2]
[373038356,1752844247030,-319.48310855,0.00017891,2]
[373038358,1752844247039,-258.86980587,0.00017892,2]
[373038360,1752844247049,-466.18423889,0.00018166,2]
[373040826,1752844407875,24900.0,0.00015769,2]
[373040827,1752844465940,46200.7051011,0.00015769,2]
[373040828,1752844548766,4159.4153474,0.00015744,2]
[373040829,1752844612663,284.913414,0.00013699,2]
[373040831,1752844718061,2183.0,0.000164,2]
[373040832,1752844799802,465.63,0.00016,2]
[373040837,1752845154297,-1200.0,0.0001646,2]
[373040838,1752845154318,-300.0,0.0001646,2]
[373040839,1752845154340,-300.0,0.0001646,2]
[373040840,1752845154362,-300.0,0.0001646,2]
[373040841,1752845154383,-300.0,0.0001646,2]
[373040842,1752845154406,-899.44041833,0.0001646,2]
[373040845,1752845227105,-300.55958167,0.0001646,2]
[373040846,1752845227127,-300.0,0.00016461,2]
[373040847,1752845227149,-789.45972238,0.00016461,2]
[373040848,1752845235081,-410.54027762,0.00016461,2]
[373040849,1752845235103,-300.0,0.00016461,2]
[373040850,1752845235126,-414.09182714,0.00016462,2]
[373040858,1752845326397,5501.94625275,0.0001,2]
[373040870,1752845360084,-9585.90817286,0.00016462,2]
[373040871,1752845360106,-300.0,0.00016591,2]
[373040872,1752845360126,-558.02646606,0.00016592,2]
[373040873,1752845360149,-460.0,0.00016672,2]
[373040874,1752845360168,-460.0,0.00016672,2]
[373040875,1752845360190,-460.0,0.00016672,2]
[373040876,1752845360212,-460.0,0.00016672,2]
[373040877,1752845360232,-460.0,0.00016672,2]
[373040878,1752845360252,-460.0,0.00016672,2]
[373040879,1752845360273,-1075.48,0.00016672,2]
[373040880,1752845360292,-503.18782127,0.00016673,2]
[373040881,1752845360312,-445.20083852,0.00016673,2]
[373040882,1752845361091,-54.79916148,0.00016673,2]
[373040883,1752845361112,-500.0,0.00016673,2]
[373040884,1752845361134,-500.0,0.00016673,2]
[373040885,1752845361154,-613.19035276,0.00016673,2]
[373040886,1752845361174,-500.0,0.00016673,2]
[373040887,1752845361194,-500.0,0.00016673,2]
[373040888,1752845361215,-500.0,0.00016673,2]
[373040889,1752845361235,-500.0,0.00016673,2]
[373040890,1752845361254,-500.0,0.00016673,2]
[373040891,1752845361275,-500.0,0.00016673,2]
[373040892,1752845361296,-500.0,0.00016673,2]
[373040893,1752845361317,-225.51922123,0.00016687,3]
[373040894,1752845364308,-279.90077877,0.00016687,3]
[373040895,1752845364330,-470.71915391,0.00016691,2]
[373040896,1752845364350,-620.25373239,0.00016692,2]
[373040897,1752845364375,-500.0,0.00016692,2]
[373040898,1752845364398,-500.0,0.00016692,2]
[373040899,1752845364419,-500.0,0.00016692,2]
[373040900,1752845364441,-170.13950469,0.00016692,2]
[373040901,1752845364462,-573.49612577,0.00016692,2]
[373040902,1752845364485,-500.0,0.00016692,2]
[373040903,1752845364508,-500.0,0.00016692,2]
[373040904,1752845364530,-500.0,0.00016692,2]
[373040905,1752845364552,-500.0,0.00016692,2]
[373040906,1752845364575,-500.0,0.00016692,2]
[373040907,1752845364597,-500.0,0.00016692,2]
[373040908,1752845364621,-500.0,0.00016692,2]
[373040909,1752845364644,-254.59957676,0.00016692,2]
[373040910,1752845364666,-500.0,0.00016692,2]
[373040911,1752845364688,-500.0,0.00016692,2]
[373040912,1752845364712,-500.0,0.00016692,2]
[373040913,1752845364734,-500.0,0.00016692,2]
[373040914,1752845364760,-426.08502543,0.00016692,2]
[373040915,1752845364782,-500.0,0.00016692,2]
[373040916,1752845364805,-500.0,0.00016692,2]
[373040917,1752845364827,-500.0,0.00016692,2]
[373040918,1752845364849,-500.0,0.00016692,2]
[373040919,1752845364870,-245.65857156,0.00016692,2]
[373040920,1752845364893,-500.0,0.00016692,2]
[373040921,1752845364916,-500.0,0.00016692,2]
[373040922,1752845364939,-500.0,0.00016692,2]
[373040923,1752845364962,-500.0,0.00016692,2]
[373040924,1752845364984,-500.0,0.00016692,2]
[373040925,1752845365008,-500.0,0.00016692,2]
[373040926,1752845365031,-500.0,0.00016692,2]
[373040927,1752845365053,-500.0,0.00016692,2]
[373040928,1752845365075,-500.0,0.00016692,2]
[373040929,1752845365098,-192.14744461,0.00016692,2]
[373040930,1752845365120,-500.0,0.00016692,2]
[373040931,1752845365144,-500.0,0.00016692,2]
[373040932,1752845365166,-500.0,0.00016692,2]
[373040933,1752845365188,-500.0,0.00016692,2]
[373040934,1752845365212,-357.5441613,0.00016692,2]
[373040935,1752845365235,-500.0,0.00016692,2]
[373040936,1752845365258,-500.0,0.00016692,2]
[373040937,1752845365281,-500.0,0.00016692,2]
[373040938,1752845365303,-500.0,0.00016692,2]
[373040939,1752845365326,-500.0,0.00016692,2]
[373040940,1752845365348,-500.0,0.00016692,2]
[373040941,1752845365370,-500.0,0.00016692,2]
[373040942,1752845365396,-500.0,0.00016692,2]
[373040943,1752845365419,-500.0,0.00016692,2]
[373040944,1752845365440,-500.0,0.00016692,2]
[373040945,1752845365463,-500.0,0.00016692,2]
[373040946,1752845365487,-500.0,0.00016692,2]
[373040947,1752845365510,-500.0,0.00016692,2]
[373040948,1752845365534,-500.0,0.00016692,2]
[373040949,1752845365559,-500.0,0.00016692,2]
[373040950,1752845365581,-500.0,0.00016692,2]
[373040951,1752845365603,-500.0,0.00016692,2]
[373040952,1752845365627,-50000.0,0.00016693,2]
[373040953,1752845365652,-460.0,0.00016694,2]
[373040954,1752845365677,-2259.36,0.00016694,2]
[373040955,1752845365703,-2968.7,0.00016694,2]
[373040956,1752845365726,-460.0,0.00016694,2]
[373040957,1752845365750,-460.0,0.00016694,2]
[373040958,1752845365774,-460.0,0.00016694,2]
[373040959,1752845365796,-460.0,0.00016694,2]
[373040960,1752845365819,-460.0,0.00016694,2]
[373040961,1752845365846,-1666.35,0.00016694,2]
[373040962,1752845365986,-460.0,0.00016694,2]
[373040963,1752845366010,-1468.03,0.00016694,2]
[373040964,1752845366033,-460.0,0.00016694,2]
[373040965,1752845366055,-460.0,0.00016694,2]
[373040966,1752845366079,-1349.75,0.00016694,2]
[373040967,1752845366102,-460.0,0.00016694,2]
[373040968,1752845366123,-460.0,0.00016695,2]
[373040969,1752845366146,-460.0,0.00016695,2]
[373040970,1752845366167,-460.0,0.00016695,2]
[373040971,1752845366190,-460.0,0.00016695,2]
[373040972,1752845366212,-460.0,0.00016695,2]
[373040973,1752845366234,-460.0,0.00016695,2]
[373040974,1752845366256,-460.0,0.00016695,2]
[373040975,1752845366278,-222.69535022,0.00016695,2]
[373040976,1752845366300,-500.0,0.00016695,2]
[373040977,1752845366323,-500.0,0.00016695,2]
[373040978,1752845366346,-500.0,0.00016695,2]
[373040979,1752845366367,-266.01905259,0.00016695,2]
[373040980,1752845366390,-460.0,0.00016695,2]
[373040981,1752845366417,-460.0,0.00016695,2]
[373040982,1752845366439,-460.0,0.00016695,2]
[373040983,1752845366460,-460.0,0.00016695,2]
[373040984,1752845366483,-460.0,0.00016695,2]
[373040985,1752845366506,-460.0,0.00016695,2]
[373040986,1752845366527,-460.0,0.00016695,2]
[373040987,1752845366550,-460.0,0.00016695,2]
[373040988,1752845366572,-460.0,0.00016695,2]
[373040989,1752845366594,-460.0,0.00016695,2]
[373040990,1752845366618,-478.00355334,0.00016695,2]
[373040991,1752845366848,-460.0,0.00016695,2]
[373040992,1752845366871,-460.0,0.00016695,2]
[373040993,1752845366897,-460.0,0.00016695,2]
[373040994,1752845366920,-460.0,0.00016695,2]
[373040995,1752845366942,-460.0,0.00016695,2]
[373040996,1752845366964,-460.0,0.00016695,2]
[373040997,1752845366986,-460.0,0.00016695,2]
[373040998,1752845367008,-467.22,0.00016695,2]
[373040999,1752845367029,-460.0,0.00016695,2]
[373041000,1752845367051,-460.0,0.00016695,2]
[373041001,1752845367075,-460.0,0.00016695,2]
[373041002,1752845367096,-460.0,0.00016695,2]
[373041003,1752845367119,-1122.06,0.00016695,2]
[373041004,1752845367142,-460.0,0.00016695,2]
[373041005,1752845367163,-460.0,0.00016695,2]
[373041006,1752845367185,-460.0,0.00016695,2]
[373041007,1752845367206,-460.0,0.00016695,2]
[373041008,1752845367227,-460.0,0.00016695,2]
[373041009,1752845367250,-460.0,0.00016695,2]
[373041010,1752845367271,-398.42831168,0.00016695,2]
[373041011,1752845367292,-460.0,0.00016695,2]
[373041012,1752845367314,-362.09439152,0.00016695,2]
[373041013,1752845367339,-460.0,0.00016695,2]
[373041014,1752845367361,-460.0,0.00016695,2]
[373041015,1752845367383,-625.42,0.00016695,2]
[373041016,1752845367406,-460.0,0.00016695,2]
[373041017,1752845367428,-460.0,0.00016695,2]
[373041018,1752845367450,-460.0,0.00016695,2]
[373041019,1752845367471,-460.34709514,0.00016695,2]
[373041020,1752845367494,-460.0,0.00016695,2]
[373041021,1752845367517,-460.0,0.00016695,2]
[373041022,1752845367540,-460.0,0.00016695,2]
[373041023,1752845367563,-460.0,0.00016695,2]
[373041024,1752845367585,-460.0,0.00016695,2]
[373041025,1752845367608,-460.0,0.00016695,2]
[373041026,1752845367632,-500.0,0.00016696,2]
[373041027,1752845367656,-460.0,0.00016696,2]
[373041028,1752845367679,-460.0,0.00016696,2]
[373041029,1752845367702,-240.0,0.00016696,2]
[373041030,1752845367724,-460.0,0.00016696,2]
[373041031,1752845367746,-460.0,0.00016696,2]
[373041032,1752845367767,-460.0,0.00016696,2]
[373041033,1752845367790,-460.0,0.00016696,2]
[373041034,1752845367815,-460.0,0.00016696,2]
[373041035,1752845367837,-460.0,0.00016696,2]
[373041036,1752845367859,-460.0,0.00016696,2]
[373041037,1752845367881,-460.0,0.00016696,2]
[373041038,1752845367903,-365.270547,0.00016696,2]
[373041039,1752845367925,-460.0,0.00016696,2]
[373041040,1752845367947,-355.78438195,0.00016696,2]
[373041041,1752845367971,-460.0,0.00016696,2]
[373041042,1752845367993,-460.0,0.00016696,2]
[373041043,1752845368017,-460.0,0.00016696,2]
[373041044,1752845368039,-460.0,0.00016696,2]
[373041045,1752845368062,-460.0,0.00016696,2]
[373041046,1752845368086,-460.0,0.00016696,2]
[373041047,1752845368109,-460.0,0.00016696,2]
[373041048,1752845368133,-460.0,0.00016696,2]
[373041049,1752845368158,-460.0,0.00016696,2]
[373041050,1752845368181,-460.0,0.00016696,2]
[373041051,1752845368203,-460.0,0.00016696,2]
[373041052,1752845368227,-460.0,0.00016696,2]
[373041053,1752845368248,-460.0,0.00016696,2]
[373041054,1752845368286,-570.71,0.00016696,2]
[373041055,1752845368312,-460.0,0.00016696,2]
[373041056,1752845368336,-414.16457757,0.00016696,2]
[373041057,1752845368359,-460.0,0.00016696,2]
[373041058,1752845368383,-460.0,0.00016696,2]
[373041059,1752845368412,-460.0,0.00016696,2]
[373041060,1752845368436,-47701.55507905,0.00016697,2]
[373041061,1752845368460,-500.0,0.00016773,2]
[373041062,1752845368483,-500.0,0.00016773,2]
[373041063,1752845368506,-500.0,0.00016773,2]
[373041064,1752845368529,-500.0,0.00016773,2]
[373041065,1752845368556,-336.93,0.00016784,3]
[373041066,1752845368580,-168.47,0.00016784,3]
[373041067,1752845368603,-460.0,0.00016793,2]
[373041068,1752845368628,-460.0,0.00016793,2]
[373041069,1752845368653,-460.0,0.00016793,2]
[373041070,1752845368677,-460.0,0.00016793,2]
[373041071,1752845368701,-460.0,0.00016793,2]
[373041072,1752845368724,-460.0,0.00016793,2]
[373041073,1752845368747,-460.0,0.00016793,2]
[373041074,1752845368770,-465.47598296,0.00016793,2]
[373041075,1752845368795,-460.0,0.00016793,2]